bitfinex/quotes_ETHUSD_20241104
["timestamp","ask_amount","ask_price","bid_price","bid_amount"]
[1730731232095,15.95642244,2453.6,2453.5,3.5e-06]
[1730731232295,16.02791656,2453.6,2453.5,3.5e-06]
[1730731232498,13.49884352,2453.6,2453.5,3.5e-06]
[1730731232729,16.02777167,2453.6,2453.5,3.5e-06]
[1730731232867,13.49884352,2453.6,2453.5,3.5e-06]
[1730731233073,14.04884352,2453.6,2453.5,3.5e-06]
[1730731234070,16.15582009,2453.6,2453.5,3.5e-06]
[1730731234773,14.04884352,2453.6,2453.5,3.5e-06]
[1730731234997,16.15565968,2453.6,2453.5,3.5e-06]
[1730731235199,16.15562161,2453.6,2453.5,3.5e-06]
[1730731236597,14.04884352,2453.6,2453.5,3.5e-06]
[1730731236800,16.1556338,2453.6,2453.5,3.5e-06]
[1730731237312,14.04884352,2453.6,2453.5,3.5e-06]
[1730731237510,16.15568901,2453.6,2453.5,3.5e-06]
[1730731237723,16.15558344,2453.6,2453.5,3.5e-06]
[1730731238799,5.83272497,2453.6,2453.5,3.5e-06]
[1730731239034,10.43579687,2453.6,2453.5,3.5e-06]
[1730731239226,8.75020602,2453.6,2453.5,3.5e-06]
[1730731240141,17.30020602,2453.6,2453.5,3.5e-06]
[1730731240336,20.19974594,2453.6,2453.5,3.5e-06]
[1730731240505,22.88008237,2453.6,2453.5,3.5e-06]
[1730731240839,22.88100184,2453.6,2453.5,3.5e-06]
[1730731241334,22.88094291,2453.6,2453.5,3.5e-06]
[1730731241552,20.77334245,2453.6,2453.5,3.5e-06]
[1730731242541,23.3026436,2453.6,2453.5,3.5e-06]
[1730731243308,20.77334245,2453.6,2453.5,3.5e-06]
[1730731243508,23.30321983,2453.6,2453.5,3.5e-06]
[1730731243708,20.77334245,2453.6,2453.5,3.5e-06]
[1730731244745,23.30431837,2453.6,2453.5,3.5e-06]
[1730731245201,36.45431837,2453.6,2453.5,3.5e-06]
[1730731245442,33.92334245,2453.6,2453.5,3.5e-06]
[1730731246493,24.58054245,2453.6,2453.5,3.5e-06]
[1730731246655,21.90020602,2453.6,2453.5,3.5e-06]
[1730731247043,24.01016009,2453.6,2453.5,3.5e-06]
[1730731247481,21.19288198,2453.6,2453.5,3.5e-06]
[1730731247839,24.74288198,2453.6,2453.5,3.5e-06]
[1730731249075,17.29713412,2453.6,2453.5,0.0100035]
[1730731249276,13.22149412,2453.6,2453.5,0.8053035]
[1730731249500,17.29713412,2453.6,2453.5,0.8053035]
[1730731250317,17.29713412,2453.6,2453.5,3.5e-06]
[1730731250318,21.19288198,2453.6,2453.5,3.5e-06]
[1730731250598,26.88856989,2453.6,2453.5,3.5e-06]
[1730731250818,34.54947351,2453.6,2453.5,3.5e-06]
[1730731250958,33.25016989,2453.6,2453.5,3.5e-06]
[1730731251917,35.78324772,2453.6,2453.5,3.5e-06]
[1730731252212,24.74288198,2453.6,2453.5,3.5e-06]
[1730731253220,26.85431411,2453.6,2453.5,3.5e-06]
[1730731253427,24.74288198,2453.6,2453.5,3.5e-06]
[1730731254614,17.29713412,2453.6,2453.5,3.5e-06]
[1730731254785,18.98685779,2453.6,2453.5,0.7799035]
[1730731255192,13.22149412,2453.6,2453.5,0.7799035]
[1730731255393,17.29713412,2453.6,2453.5,0.7799035]
[1730731255897,13.22149412,2453.6,2453.5,0.7799035]
[1730731256198,17.29713412,2453.6,2453.5,0.7799035]
[1730731256402,13.22149412,2453.6,2453.5,0.7799035]
[1730731256611,13.22149412,2453.6,2453.5,4.8657135]
[1730731256814,13.22149412,2453.6,2453.5,5.47000229]
[1730731257132,13.22149412,2453.6,2453.5,5.4699651]
[1730731257333,13.15,2453.6,2453.5,5.4699651]
[1730731257617,13.2166321,2453.6,2453.5,5.4699651]
[1730731258486,13.2166321,2453.6,2453.5,5.09812538]
[1730731258711,13.2166321,2453.6,2453.5,5.08812538]
[1730731258913,0.0666321,2453.6,2453.5,8.09812538]
[1730731259118,6.6087229,2454.7,2454.6,4.07398]
[1730731259119,1.68972367,2454.7,2454.6,4.07398]
[1730731259326,1.68972367,2454.7,2454.3,0.01]
[1730731259327,13.17642367,2455.1,2454.9,0.01]
[1730731259586,0.0630061,2455.0,2454.9,0.01]
[1730731259830,0.0630061,2455.0,2454.9,0.02]
[1730731260874,0.0630061,2455.0,2454.9,4.91108]
[1730731261024,0.0630061,2455.0,2454.9,4.92108]
[1730731261221,0.0630061,2455.0,2454.9,5.00254057]
[1730731261567,0.0630061,2455.0,2454.9,7.93108]
[1730731261726,0.0630061,2455.0,2454.9,8.24364051]
[1730731261926,0.0630061,2455.0,2454.9,8.16218226]
[1730731262322,0.0630061,2455.0,2454.9,8.16175758]
[1730731262529,0.0630061,2455.0,2454.9,7.93108]
[1730731262733,0.0630061,2455.0,2454.9,8.16175458]
[1730731262934,0.0630061,2455.0,2454.9,7.93108]
[1730731263136,0.0630061,2455.0,2454.9,8.16176503]
[1730731263334,0.0630061,2455.0,2454.9,7.93108]
[1730731263864,0.0630061,2455.0,2454.9,8.16147202]
[1730731264272,0.0630061,2455.0,2454.9,8.1612036]
[1730731264929,0.0630061,2455.0,2454.9,7.93108]
[1730731265158,0.0630061,2455.0,2454.9,8.16118151]
[1730731265472,0.0630061,2455.0,2454.9,7.93108]
[1730731266367,0.0630061,2455.0,2454.9,8.01253784]
[1730731266521,11.4867,2455.1,2455.0,7.07331]
[1730731266724,11.4867,2455.1,2455.0,7.90561]
[1730731266925,11.4867,2455.1,2455.0,8.13529093]
[1730731267123,11.4867,2455.1,2455.0,9.19652918]
[1730731267368,4.07091,2456.5,2456.4,0.02]
[1730731267573,4.9006,2456.7,2456.6,0.02]
[1730731267740,0.83,2456.7,2456.6,0.02]
[1730731268170,0.83,2456.9,2456.8,0.02]
[1730731268491,4.13127,2457.2,2457.1,0.02]
[1730731268492,0.89149,2457.2,2457.1,0.02]
[1730731272068,0.89149,2457.2,2457.1,7.99051728]
[1730731272264,0.89149,2457.2,2457.1,7.99050157]
[1730731272577,0.89149,2457.2,2457.1,8.61317266]
[1730731272790,0.89149,2457.2,2457.1,7.90913]
[1730731273405,0.89149,2457.2,2457.1,7.99050462]
[1730731273567,0.89149,2457.2,2457.1,7.90913]
[1730731275007,0.89149,2457.2,2457.1,7.9905118]
[1730731275165,0.89149,2457.2,2457.1,8.61317266]
[1730731275371,0.0614935,2458.4,2457.1,8.61317266]
[1730731275372,4.1293035,2458.4,2458.3,0.02]
[1730731275562,5.08906674,2458.4,2458.3,0.02]
[1730731275769,4.18652239,2458.4,2458.3,0.02]
[1730731276283,0.11871239,2458.4,2458.3,0.02]
[1730731276766,0.11871239,2458.4,2458.3,4.87925]
[1730731277103,0.0614935,2458.4,2458.3,3.8114]
[1730731277392,0.0614935,2458.4,2458.3,0.8114]
[1730731277393,0.11845837,2458.4,2458.3,0.8114]
[1730731277553,0.11845837,2458.4,2458.3,4.87925]
[1730731277957,0.0614935,2458.4,2458.3,4.87925]
[1730731278354,0.0614935,2458.4,2458.3,0.7914]
[1730731278551,4.59909192,2458.4,2458.3,0.02]
[1730731279059,4.59909192,2458.4,2457.7,0.7996]
[1730731279060,4.06818,2458.1,2457.8,0.01]
[1730731279269,4.06851,2457.9,2457.8,0.01]
[1730731279558,4.06851,2457.9,2457.5,0.02]
[1730731279559,4.06901,2457.6,2457.5,0.02]
[1730731279780,4.12615907,2457.6,2457.5,0.01]
[1730731280095,4.06934,2457.4,2457.3,0.02]
[1730731280594,4.12643615,2457.4,2457.3,0.02]
[1730731280754,0.05709615,2457.4,2457.3,0.02]
[1730731281182,4.06933,2457.5,2457.3,0.02]
[1730731281385,4.12621928,2457.4,2457.3,0.02]
[1730731281584,4.67621928,2457.4,2457.3,0.01]
[1730731281790,4.67621928,2457.4,2457.0,0.01]
[1730731281791,4.06983,2457.1,2457.0,0.01]
[1730731281963,4.07033,2456.8,2456.7,0.02]
[1730731282163,4.12622371,2456.8,2456.7,0.02]
[1730731282578,0.05589371,2456.8,2456.7,0.02]
[1730731282752,4.06988,2457.1,2456.7,0.02]
[1730731282753,4.07,2457.0,2456.7,0.02]
[1730731282951,0.05643897,2456.9,2456.7,0.02]
[1730731283509,4.12669897,2456.9,2456.8,0.01]
[1730731283797,4.94627087,2456.9,2456.8,0.01]
[1730731284302,0.87611087,2456.9,2456.8,0.01]
[1730731284511,0.05643897,2456.9,2456.8,0.01]
[1730731284799,4.12659897,2456.9,2456.8,0.01]
[1730731285291,4.87959897,2456.9,2456.8,0.01]
[1730731286091,4.12659897,2456.9,2456.8,0.01]
[1730731287518,0.05643897,2456.9,2456.8,0.01]
[1730731287730,0.05643897,2456.9,2456.8,0.90740054]
[1730731287893,4.06941,2457.4,2457.3,0.02]
[1730731288613,4.06941,2457.4,2457.3,0.018]
[1730731289416,4.06941,2457.4,2457.3,0.24792054]
[1730731289723,9.53435542,2457.4,2457.3,0.01]
[1730731290079,4.06967,2457.2,2457.1,0.008]
[1730731290316,4.06967,2457.2,2457.1,0.018]
[1730731290317,4.61967,2457.2,2457.1,0.018]
[1730731290571,4.12633156,2457.2,2457.1,0.008]
[1730731290818,4.12633156,2457.2,2457.1,0.018]
[1730731291016,5.97014368,2457.2,2457.1,0.018]
[1730731291229,5.97014368,2457.2,2456.9,0.008]
[1730731291230,4.07,2457.0,2456.9,0.008]
[1730731291820,4.07033,2456.8,2456.7,0.01]
[1730731291993,7.6765446,2457.0,2456.9,0.008]
[1730731291994,4.1266946,2457.0,2456.9,0.008]
[1730731292179,4.1266946,2457.0,2456.9,0.018]
[1730731292375,0.0565446,2457.0,2456.9,0.61675688]
[1730731292618,4.06962,2457.3,2457.2,0.008]
[1730731292817,4.06962,2457.3,2457.2,0.23830624]
[1730731293327,4.06935,2457.4,2457.2,0.61695125]
[1730731293491,4.06935,2457.4,2457.3,0.23030624]
[1730731293696,9.55968461,2457.4,2457.3,0.23030624]
[1730731294218,4.0695,2457.3,2457.2,0.008]
[1730731294421,4.0695,2457.3,2457.2,0.23855482]
[1730731294719,4.6195,2457.3,2457.0,0.018]
[1730731294921,4.06983,2457.1,2457.0,0.018]
[1730731295092,4.06983,2457.1,2457.0,0.61747392]
[1730731295296,4.06983,2457.1,2457.0,0.61772659]
[1730731295904,4.06983,2457.1,2457.0,0.6177058]
[1730731299157,4.883782,2457.1,2457.0,0.6177058]
[1730731299317,13.79928161,2457.1,2457.0,0.5997058]
[1730731299524,13.79928161,2457.1,2457.0,0.23056006]
[1730731300242,4.0705,2456.7,2456.6,0.008]
[1730731300439,4.0705,2456.7,2456.6,0.60070906]
[1730731300735,4.6205,2456.7,2456.6,0.60070906]
[1730731300936,4.6205,2456.7,2456.6,0.37767396]
[1730731301258,4.07083,2456.5,2456.4,0.008]
[1730731301554,4.07116,2456.3,2456.2,0.008]
[1730731301716,4.07116,2456.3,2456.2,0.60856224]
[1730731302258,4.07,2457.0,2456.9,0.018]
[1730731302466,4.07,2457.0,2456.9,0.61856224]
[1730731303014,4.07,2457.0,2456.9,0.2489243]
[1730731303217,4.07,2457.0,2456.9,0.61842098]
[1730731304353,4.07,2457.0,2456.9,0.61848976]
[1730731304647,4.11745581,2457.0,2456.9,0.24895976]
[1730731304853,4.11745581,2457.0,2456.9,0.61853554]
[1730731306388,4.93618739,2457.0,2456.9,0.24895976]
[1730731306570,4.93618739,2457.0,2456.9,0.61879708]
[1730731306891,4.93618739,2457.0,2456.9,0.61878987]
[1730731306892,4.11745581,2457.0,2456.9,0.61878987]
[1730731307999,4.11745581,2457.0,2456.9,0.018]
[1730731308182,4.11745581,2457.0,2456.9,0.61974717]
[1730731308982,4.11745581,2457.0,2456.9,0.61174717]
[1730731309203,4.11745581,2457.0,2456.9,0.60174717]
[1730731309355,5.39565735,2457.0,2456.9,0.60174717]
[1730731310092,5.94565735,2457.0,2456.9,0.61174717]
[1730731310692,9.70525735,2457.0,2456.9,0.60174717]
[1730731310891,9.70525735,2457.0,2456.9,4.36e-06]
[1730731311096,9.70725735,2457.0,2456.9,4.36e-06]
[1730731311273,4.07099,2456.4,2456.3,0.01]
[1730731311468,4.07099,2456.4,2456.3,0.38150429]
[1730731311804,6.01586635,2456.4,2456.3,0.37150429]
[1730731312098,0.04526139,2456.4,2456.3,4.45066429]
[1730731312299,0.04526139,2456.4,2456.3,0.37950429]
[1730731312522,4.07067,2456.6,2456.5,0.008]
[1730731312655,4.07067,2456.6,2456.5,0.37900663]
[1730731312860,4.07067,2456.6,2456.5,0.38900663]
[1730731313672,4.07028,2456.9,2456.8,0.008]
[1730731313873,4.07028,2456.9,2456.8,0.37900663]
[1730731314076,9.42396961,2457.2,2457.1,0.01]
[1730731314077,4.06982,2457.2,2457.1,0.01]
[1730731314317,4.06954,2457.3,2457.2,0.008]
[1730731314690,4.06954,2457.3,2457.1,0.01]
[1730731314691,4.06967,2457.2,2457.1,0.018]
[1730731315292,4.06954,2457.3,2457.1,0.018]
[1730731315504,4.06954,2457.3,2457.1,0.8082]
[1730731316116,4.06929,2457.5,2457.4,0.01]
[1730731317824,9.21398961,2457.5,2457.4,0.01]
[1730731318122,4.0695,2457.3,2457.2,0.008]
[1730731318338,4.0695,2457.3,2456.8,0.7126]
[1730731318492,10.54229257,2457.5,2456.8,0.7126]
[1730731318493,4.06991,2457.1,2456.8,0.7126]
[1730731318682,4.59469961,2457.5,2456.8,0.7126]
[1730731318883,4.06977,2457.2,2456.8,0.7126]
[1730731319280,4.59469961,2457.5,2456.8,0.7126]
[1730731319486,4.59469961,2457.5,2456.5,0.37095235]
[1730731319487,4.07059,2456.7,2456.5,0.37095235]
[1730731319720,4.07092,2456.5,2456.2,3.0]
[1730731319928,8.18530307,2456.6,2456.3,0.37098209]
[1730731320125,0.04374766,2456.4,2456.1,4.07147]
[1730731320433,0.04369495,2456.3,2456.2,0.37098608]
[1730731320920,4.07109,2456.4,2456.2,0.37098608]
[1730731321126,4.11498816,2456.3,2455.8,4.09183]
[1730731321431,0.04371816,2456.3,2456.2,4.07132]
[1730731321588,0.55,2457.0,2456.2,1.17154673]
[1730731321792,4.07088,2456.5,2456.2,0.8006]
[1730731322132,4.07062,2456.7,2456.2,4.95326791]
[1730731322133,0.04379565,2456.4,2456.2,4.95326791]
[1730731322428,4.07063,2456.7,2456.2,0.8006]
[1730731322616,0.04375589,2456.3,2456.2,4.95324791]
[1730731322821,4.06996,2457.1,2456.4,0.01]
[1730731322998,4.06996,2457.1,2456.7,0.8034]
[1730731323197,4.07002,2457.0,2456.7,0.8034]
[1730731324022,4.06981,2457.2,2456.7,0.8034]
[1730731324199,4.07001,2457.0,2456.7,0.8034]
[1730731324401,5.33633205,2457.2,2456.7,4.87389]
[1730731324598,5.33633205,2457.2,2456.8,4.15161869]
[1730731324829,4.06986,2457.1,2456.7,4.87389]
[1730731324988,4.06981,2457.2,2456.7,0.8034]
[1730731325184,4.07,2457.0,2456.8,0.23184375]
[1730731325422,4.07,2457.0,2456.4,0.7678]
[1730731325423,1.80017426,2457.0,2456.4,0.7678]
[1730731325606,1.80017426,2457.0,2456.5,0.23186965]
[1730731325607,4.0707,2456.6,2456.5,0.23186965]
[1730731325801,4.0707,2456.6,2456.2,4.83911]
[1730731326023,5.33711205,2456.7,2456.3,0.23187502]
[1730731326189,4.07073,2456.6,2456.2,0.7678]
[1730731326390,4.07091,2456.5,2456.3,0.23187951]
[1730731326612,4.07091,2456.5,2456.2,0.7678]
[1730731326835,4.07109,2456.4,2456.3,0.23187365]
[1730731327045,4.07109,2456.4,2456.3,0.23185179]
[1730731327937,1.26652205,2456.5,2455.9,0.8072]
[1730731328144,5.33737205,2456.5,2456.0,0.60291438]
[1730731328307,4.07106,2456.4,2456.1,0.23188325]
[1730731328511,4.07106,2456.4,2455.9,4.96043461]
[1730731328702,4.07106,2456.4,2456.0,4.07166]
[1730731328940,4.07106,2456.4,2456.1,0.23187284]
[1730731329146,5.33747205,2456.5,2456.0,4.44261735]
[1730731329314,4.07095,2456.5,2456.1,0.31327841]
[1730731329638,4.07095,2456.5,2456.2,0.23185744]
[1730731329843,4.07095,2456.5,2456.3,0.23184891]
[1730731330011,4.0711,2456.4,2456.0,4.07157]
[1730731330345,5.33708205,2456.7,2456.1,4.3033392]
[1730731330545,5.33708205,2456.7,2456.2,4.3030892]
[1730731330546,4.07074,2456.6,2456.2,4.3030892]
[1730731330702,4.07074,2456.6,2456.3,0.2318592]
[1730731330902,4.07085,2456.5,2455.9,0.8072]
[1730731331127,4.07127,2456.3,2456.0,0.60282235]
[1730731331301,4.07127,2456.3,2456.1,0.23184786]
[1730731331630,0.407127,2456.3,2455.9,1.17826011]
[1730731331799,4.07166,2456.0,2455.8,0.37106011]
[1730731332001,4.07158,2456.1,2455.9,0.23189635]
[1730731332205,4.07123,2456.3,2456.0,0.23189635]
[1730731332434,4.07156,2456.1,2455.8,0.37100422]
[1730731332636,4.07189,2455.9,2455.7,0.37101843]
[1730731332907,4.07189,2455.9,2455.8,0.23187038]
[1730731333338,4.07182,2455.9,2455.8,0.23187038]
[1730731333546,4.07169,2456.0,2455.5,4.84792]
[1730731333848,4.07169,2456.0,2455.6,4.6750619]
[1730731334054,4.07169,2456.0,2455.5,4.84792]
[1730731334055,4.07199,2455.8,2455.7,0.23182076]
[1730731334343,4.07185,2455.9,2455.7,0.23182076]
[1730731334516,4.07168,2456.0,2455.5,1.22778184]
[1730731334719,0.04025024,2455.8,2455.6,0.23177554]
[1730731335040,0.7942,2456.6,2455.6,0.23177554]
[1730731335041,4.07166,2456.0,2455.7,0.23177554]
[1730731335246,4.07184,2455.9,2455.5,1.22779913]
[1730731335543,4.07184,2455.9,2455.6,0.23174198]
[1730731335789,4.07184,2455.9,2455.7,0.23174529]
[1730731336076,4.07162,2456.1,2455.5,5.30021912]
[1730731336077,4.07223,2455.7,2455.5,1.22779912]
[1730731336343,4.07249,2455.5,2455.3,3.68914655]
[1730731336554,4.07258,2455.5,2455.3,3.68914655]
[1730731336718,4.07265,2455.4,2455.3,3.68914655]
[1730731336922,4.07258,2455.5,2455.3,3.68914655]
[1730731337124,4.0725,2455.5,2455.0,0.37073203]
[1730731337332,4.0725,2455.5,2455.1,0.2315807]
[1730731337535,4.0725,2455.5,2454.9,5.28088818]
[1730731337853,4.0725,2455.5,2455.0,0.23157164]
[1730731338018,4.0725,2455.5,2455.1,0.23157164]
[1730731338209,4.07287,2455.3,2455.0,0.23157164]
[1730731338409,4.0728,2455.4,2455.0,0.23157164]
[1730731338641,0.8246,2455.6,2454.9,0.7736]
[1730731338642,4.07289,2455.3,2454.9,0.7736]
[1730731338840,4.07317,2455.1,2455.0,0.23148329]
[1730731339044,4.07279,2455.4,2454.9,0.7736]
[1730731339248,4.07299,2455.2,2454.9,0.7736]
[1730731339680,1.2711505,2455.8,2455.0,0.08146351]
[1730731339681,4.07208,2455.8,2455.0,0.08146351]
[1730731339842,4.07199,2455.8,2455.4,4.89147]
[1730731340173,4.07199,2455.8,2454.7,4.49812521]
[1730731340174,0.61242405,2455.8,2455.1,0.7736]
[1730731340386,0.61242405,2455.8,2454.8,0.01]
[1730731340387,4.59469961,2455.7,2454.8,0.7736]
[1730731340554,4.07259,2455.5,2455.1,4.07307]
[1730731341349,4.07232,2455.6,2455.2,0.8307]
[1730731341576,4.07256,2455.5,2455.2,0.8307]
[1730731341782,4.07269,2455.4,2455.2,0.8307]
[1730731342274,4.87776,2455.9,2455.2,0.8307]
[1730731342275,4.07228,2455.7,2455.2,0.8307]
[1730731342477,8.14458,2455.7,2455.3,0.08145437]
[1730731342645,4.07232,2455.6,2455.2,4.90361]
[1730731343070,4.07232,2455.6,2455.2,0.8307]
[1730731343588,4.0725,2455.5,2455.2,0.8307]
[1730731343754,4.07256,2455.5,2455.2,0.8307]
[1730731343947,8.14447,2455.7,2455.2,0.8307]
[1730731344283,4.07199,2455.8,2455.2,0.8307]
[1730731344490,4.07259,2455.5,2455.1,4.07306]
[1730731344783,4.07241,2455.6,2455.1,4.07306]
[1730731344968,4.07259,2455.5,2455.1,4.07306]
[1730731345170,4.07273,2455.4,2455.0,0.8063]
[1730731345557,4.07273,2455.4,2455.0,4.87954]
[1730731345852,4.07242,2455.6,2455.0,0.8063]
[1730731346070,4.07267,2455.4,2455.0,0.8063]
[1730731346274,4.07219,2455.7,2455.2,4.07296]
[1730731346448,4.07219,2455.7,2455.3,4.07274]
[1730731346785,5.3422605,2456.4,2455.9,4.07176]
[1730731346994,5.3422605,2456.4,2455.5,0.7932]
[1730731346995,4.07133,2456.2,2455.7,0.7932]
[1730731347191,4.07133,2456.2,2455.7,4.8652]
[1730731347192,8.14276,2456.2,2455.7,4.8652]
[1730731347501,4.07197,2455.9,2455.4,4.90108]
[1730731347656,4.07209,2455.8,2455.4,0.8285]
[1730731347989,4.07168,2456.0,2455.5,4.07238]
[1730731348354,4.07122,2456.3,2455.8,4.0719]
[1730731348847,4.07122,2456.3,2455.8,4.07199]
[1730731349266,4.07173,2456.0,2455.6,0.01]
[1730731349466,4.0719,2455.9,2455.5,0.8219]
[1730731349692,4.07232,2455.6,2455.5,0.8219]
[1730731349999,0.7721,2456.0,2455.2,0.8089]
[1730731350000,4.07256,2455.5,2455.2,0.8089]
[1730731350147,4.07277,2455.4,2455.2,1.04025357]
[1730731350351,4.07249,2455.5,2455.1,0.42441343]
[1730731350656,4.07249,2455.5,2455.0,4.15462662]
[1730731350968,4.07262,2455.5,2455.0,4.15474662]
[1730731351167,4.07262,2455.5,2455.0,0.42411492]
[1730731351484,4.07272,2455.4,2455.0,4.07331]
[1730731351646,4.84078,2455.5,2454.9,0.7772]
[1730731351851,4.07272,2455.4,2454.9,0.7772]
[1730731352085,4.07331,2455.0,2454.9,0.42428]
[1730731352401,4.07339,2455.0,2454.7,0.23138464]
[1730731352610,4.0735,2454.9,2454.6,1.45087297]
[1730731352804,4.07315,2455.1,2454.6,5.52469297]
[1730731352965,4.07315,2455.1,2454.6,4.95061994]
[1730731353166,4.07333,2455.0,2454.6,4.95061994]
[1730731353461,4.07333,2455.0,2454.6,1.21976176]
[1730731353462,4.07349,2454.9,2454.6,1.21976176]
[1730731353672,4.07333,2455.0,2454.6,0.7952]
[1730731353892,4.07349,2454.9,2454.6,0.7952]
[1730731354198,4.07333,2455.0,2454.6,4.95057994]
[1730731354401,0.7682,2455.5,2454.6,0.87666994]
[1730731354402,7.84083,2455.5,2454.6,0.87666994]
[1730731354620,4.07241,2455.6,2455.1,4.07307]
[1730731354830,4.07241,2455.6,2455.0,0.8294]
[1730731354831,4.07265,2455.5,2455.0,4.90269]
[1730731355123,4.07214,2455.8,2455.0,0.91085658]
[1730731355273,4.07185,2455.9,2455.4,4.07254]
[1730731355477,4.07206,2455.8,2455.5,0.7986]
[1730731356017,0.7898,2456.1,2455.5,0.7986]
[1730731356018,4.0718,2456.0,2455.5,4.87108]
[1730731356174,0.7898,2456.1,2455.5,0.7986]
[1730731356522,4.07202,2455.8,2455.5,0.7986]
[1730731356883,1.32824996,2456.1,2455.5,0.7986]
[1730731357082,4.07184,2455.9,2455.5,0.7986]
[1730731357282,4.072,2455.8,2455.5,0.7986]
[1730731357777,4.07219,2455.7,2455.2,4.85106]
[1730731358007,4.07243,2455.6,2455.2,0.7781]
[1730731358182,8.14488,2455.6,2455.2,0.7781]
[1730731358383,4.07199,2455.8,2455.2,1.00957557]
[1730731358604,4.07282,2455.3,2455.2,0.7781]
[1730731358806,4.07261,2455.5,2455.2,0.7781]
[1730731358984,8.14521,2455.5,2455.2,0.7781]
[1730731359517,4.07235,2455.6,2455.2,4.85107]
[1730731359722,4.07282,2455.3,2455.0,0.7588]
[1730731360029,4.62183,2455.9,2455.0,0.7588]
[1730731360030,4.07256,2455.5,2455.1,4.30466063]
[1730731360320,4.07208,2455.8,2455.3,4.07282]
[1730731360560,4.07184,2455.9,2455.4,0.89004608]
[1730731360682,4.07184,2455.9,2455.5,4.07245]
[1730731361014,4.0718,2456.0,2455.6,4.07223]
[1730731361230,4.07155,2456.1,2455.7,4.07213]
[1730731361395,4.0714,2456.2,2455.6,4.0723]
[1730731361580,4.07129,2456.3,2455.9,0.8086]
[1730731361777,0.487939,2456.3,2455.7,0.8086]
[1730731362123,0.487939,2456.3,2455.4,4.07258]
[1730731362124,4.59469961,2456.3,2455.5,0.23166229]
[1730731362288,6.1501605,2456.5,2455.6,0.23172432]
[1730731362289,4.07183,2455.9,2455.6,0.23172432]
[1730731362488,4.07183,2455.9,2455.5,4.07244]
[1730731362892,4.07163,2456.1,2455.6,4.30401711]
[1730731363144,4.07163,2456.1,2455.4,0.3707843]
[1730731363145,8.14378,2455.9,2455.4,4.0725]
[1730731363429,4.07184,2455.9,2455.5,4.30419182]
[1730731363788,4.07184,2455.9,2455.6,0.23173182]
[1730731364130,4.07168,2456.0,2455.6,4.07231]
[1730731364727,4.07191,2455.9,2455.5,4.07248]
[1730731364930,4.07191,2455.9,2455.6,0.23174662]
[1730731365232,4.07191,2455.9,2455.5,4.07248]
[1730731365397,4.07191,2455.9,2455.6,0.23177487]
[1730731365595,4.07201,2455.8,2455.3,4.07266]
[1730731365897,4.07201,2455.8,2455.4,4.30440132]
[1730731366118,4.07201,2455.8,2455.5,0.23176132]
[1730731366427,4.07201,2455.8,2455.6,0.23177236]
[1730731366723,0.7838,2456.2,2455.5,4.15391152]
[1730731366895,4.07163,2456.1,2455.6,4.30400927]
[1730731367091,4.85513,2456.2,2455.7,5.13100927]
[1730731367290,4.07111,2456.4,2455.7,4.89922]
[1730731367291,4.07119,2456.3,2455.7,4.89922]
[1730731367633,0.7838,2456.6,2455.8,0.08142953]
[1730731367935,4.85397,2456.9,2456.0,0.8272]
[1730731368137,4.07101,2456.4,2456.0,4.89872]
[1730731368437,4.0712,2456.3,2456.0,0.8272]
[1730731369131,8.14245,2456.3,2456.0,0.8272]
[1730731369301,4.0712,2456.3,2456.0,0.8272]
[1730731370125,4.07062,2456.7,2456.1,4.0714]
[1730731370314,4.07083,2456.5,2456.1,4.0714]
[1730731370711,4.07069,2456.6,2456.1,4.15282063]
[1730731370934,4.07084,2456.5,2456.1,4.0714]
[1730731371535,4.07069,2456.6,2456.2,4.07131]
[1730731371944,4.07058,2456.7,2456.3,4.07115]
[1730731372109,0.53876222,2456.8,2456.2,4.07123]
[1730731372473,4.07053,2456.7,2456.2,4.07123]
[1730731372602,4.07053,2456.7,2456.3,4.07115]
[1730731372800,4.07053,2456.7,2456.2,4.07131]
[1730731373046,4.07074,2456.6,2456.1,8.14285]
[1730731373538,4.0709,2456.5,2456.0,4.89876]
[1730731374407,4.0709,2456.5,2456.1,4.07148]
[1730731376540,4.0709,2456.5,2456.1,8.22438099]
[1730731376743,4.07069,2456.6,2456.2,4.07124]
[1730731377182,4.07085,2456.5,2456.0,0.8272]
[1730731377323,4.07102,2456.4,2456.0,0.8272]
[1730731377666,4.07154,2456.1,2455.8,0.7996]
[1730731377825,4.07154,2456.1,2455.8,1.030979]
[1730731378023,1.643687,2456.4,2455.8,0.7996]
[1730731378359,4.07139,2456.2,2455.8,4.87159]
[1730731378656,4.07166,2456.0,2455.8,0.7996]
[1730731379249,4.07182,2455.9,2455.6,0.8036]
[1730731379429,4.07191,2455.9,2455.6,0.8036]
[1730731379628,4.478866,2456.0,2455.6,0.8036]
[1730731379830,4.07144,2456.2,2455.7,4.07205]
[1730731380061,4.07142,2456.2,2455.7,4.07205]
[1730731380266,4.07195,2455.9,2455.6,0.8036]
[1730731380567,4.07195,2455.9,2455.3,0.42479783]
[1730731380568,4.07241,2455.6,2455.5,0.23136419]
[1730731381133,4.62241,2455.6,2455.5,0.23136419]
[1730731381359,5.43631,2455.6,2455.5,0.23136419]
[1730731381566,11.41557612,2455.6,2455.5,0.23136419]
[1730731381840,11.83961562,2455.6,2455.5,0.23136419]
[1730731382242,4.07265,2455.4,2455.3,0.37020059]
[1730731382448,4.07438,2454.4,2454.1,0.7821]
[1730731382757,4.07428,2454.5,2453.9,4.91824031]
[1730731382945,4.07433,2454.4,2454.0,4.07496]
[1730731383329,4.07433,2454.4,2453.9,5.34257788]
[1730731383526,4.07428,2454.5,2454.0,4.07487]
[1730731383527,4.07416,2454.5,2454.0,4.07487]
[1730731383730,4.07442,2454.4,2453.9,5.34255788]
[1730731383970,0.7663,2454.6,2453.9,1.26745788]
[1730731384174,4.07497,2454.0,2453.9,0.42423757]
[1730731384468,4.07515,2453.9,2453.6,0.7821]
[1730731384985,4.07482,2454.1,2453.6,4.85766]
[1730731385274,4.07507,2454.0,2453.6,0.7821]
[1730731385484,4.07465,2454.2,2453.7,4.07546]
[1730731385784,4.07465,2454.2,2453.6,0.7821]